fUSD/lending_fUSD_20251013
["ID","MTS","AMOUNT","RATE_DAILY","PERIOD"]
[391143158,1760393441129,-151.0,0.00029639,30]
[391143160,1760393441138,-151.0,0.00029639,30]
[391143162,1760393441148,-151.0,0.00029639,30]
[391143164,1760393441157,-151.0,0.00029639,30]
[391143166,1760393441166,-151.0,0.00029639,30]
[391143168,1760393441175,-151.0,0.00029639,30]
[391143170,1760393441185,-151.0,0.00029639,30]
[391143172,1760393441195,-1659.95362694,0.0002964,2]
[391143174,1760393441204,-1659.95362694,0.0002964,2]
[391143176,1760393441214,-151.0,0.0002964,30]
[391143178,1760393441223,-151.0,0.0002964,30]
[391143180,1760393441232,-151.0,0.0002964,30]
[391143182,1760393441242,-151.0,0.0002964,30]
[391143184,1760393441251,-151.0,0.0002964,30]
[391143186,1760393441260,-151.0,0.00029643,30]
[391143188,1760393441269,-151.0,0.00029643,30]
[391143190,1760393441278,-151.0,0.00029643,30]
[391143192,1760393441288,-151.0,0.00029643,30]
[391143194,1760393441297,-151.0,0.00029643,30]
[391143195,1760393441306,-151.0,0.00029643,30]
[391143196,1760393441315,-151.0,0.00029643,30]
[391143197,1760393441324,-151.0,0.00029643,30]
[391143198,1760393441332,-151.0,0.00029643,30]
[391143199,1760393441341,-151.0,0.00029643,30]
[391143200,1760393441350,-151.0,0.00029643,30]
[391143201,1760393441359,-151.0,0.00029643,30]
[391143202,1760393441368,-151.0,0.00029643,30]
[391143203,1760393441377,-151.0,0.00029643,30]
[391143205,1760393441387,-151.0,0.00029643,30]
[391143206,1760393441396,-151.0,0.00029643,30]
[391143208,1760393441405,-151.0,0.00029643,30]
[391143211,1760393441414,-50000.0,0.00029644,30]
[391143213,1760393441424,-50000.0,0.00029644,31]
[391143215,1760393441433,-50000.0,0.00029644,32]
[391143217,1760393441442,-151.0,0.00029644,30]
[391143219,1760393441450,-151.0,0.00029644,30]
[391143221,1760393441460,-151.0,0.00029644,30]
[391143223,1760393441469,-151.0,0.00029644,30]
[391143225,1760393441479,-151.0,0.00029644,30]
[391143227,1760393441489,-151.0,0.00029644,30]
[391143229,1760393441497,-151.0,0.00029644,30]
[391143231,1760393441506,-151.0,0.00029644,30]
[391143233,1760393441515,-151.0,0.00029644,30]
[391143235,1760393441525,-151.0,0.00029644,30]
[391143237,1760393441533,-151.0,0.00029644,30]
[391143239,1760393441543,-151.0,0.00029644,30]
[391143241,1760393441552,-240.080076,0.00029644,30]
[391143242,1760393441575,-151.0,0.00029644,30]
[391143245,1760393441585,-253.0,0.00029644,30]
[391143247,1760393441594,-151.0,0.00029644,30]
[391143249,1760393441603,-151.0,0.00029644,30]
[391143251,1760393441612,-151.0,0.00029644,30]
[391143252,1760393441620,-151.0,0.00029644,30]
[391143254,1760393441630,-249.723008,0.00029644,30]
[391143257,1760393441639,-151.0,0.00029644,30]
[391143258,1760393441648,-151.0,0.00029644,30]
[391143261,1760393441658,-151.0,0.00029644,30]
[391143263,1760393441667,-151.0,0.00029644,30]
[391143265,1760393441676,-212.904252,0.00029644,30]
[391143267,1760393441685,-151.0,0.00029644,30]
[391143269,1760393441694,-151.0,0.00029644,30]
[391143270,1760393441703,-151.0,0.00029644,30]
[391143273,1760393441712,-151.0,0.00029644,30]
[391143274,1760393441721,-151.0,0.00029644,30]
[391143277,1760393441730,-151.0,0.00029644,30]
[391143279,1760393441740,-151.0,0.00029644,30]
[391143281,1760393441748,-151.0,0.00029644,30]
[391143283,1760393441757,-151.0,0.00029644,30]
[391143285,1760393441767,-151.0,0.00029644,30]
[391143287,1760393441776,-151.0,0.00029644,30]
[391143289,1760393441787,-256.2284,0.00029644,30]
[391143290,1760393441797,-151.0,0.00029644,30]
[391143293,1760393441807,-151.0,0.00029644,30]
[391143295,1760393441817,-151.0,0.00029644,30]
[391143297,1760393441826,-151.0,0.00029644,30]
[391143299,1760393441836,-151.0,0.00029644,30]
[391143301,1760393441845,-151.0,0.00029644,30]
[391143303,1760393441854,-151.0,0.00029644,30]
[391143305,1760393441863,-151.0,0.00029644,30]
[391143307,1760393441872,-151.0,0.00029644,30]
[391143309,1760393441881,-151.0,0.00029644,30]
[391143311,1760393441892,-151.0,0.00029644,30]
[391143313,1760393441902,-151.0,0.00029644,30]
[391143315,1760393441912,-151.0,0.00029644,30]
[391143317,1760393441921,-151.0,0.00029644,30]
[391143319,1760393441930,-151.0,0.00029644,30]
[391143321,1760393441939,-151.0,0.00029644,30]
[391143358,1760393442275,-151.0,0.00029644,30]
[391143360,1760393442284,-153.9903,0.00029644,30]
[391143363,1760393442294,-151.0,0.00029644,30]
[391143365,1760393442303,-151.0,0.00029644,30]
[391143367,1760393442312,-151.0,0.00029644,30]
[391143369,1760393442321,-151.0,0.00029644,30]
[391143371,1760393442331,-151.0,0.00029644,30]
[391143373,1760393442340,-151.0,0.00029644,30]
[391143375,1760393442349,-530.959472,0.00029644,30]
[391143376,1760393442359,-530.959472,0.00029644,30]
[391143378,1760393442370,-530.959472,0.00029644,30]
[391143381,1760393442379,-151.0,0.00029644,2]
[391143383,1760393442388,-530.959472,0.00029644,30]
[391143385,1760393442398,-151.0,0.00029644,30]
[391143387,1760393442407,-151.0,0.00029644,30]
[391143390,1760393442417,-2414503.90461834,0.00029645,30]
[391143524,1760393443742,-23245.39601283,0.00029645,30]
[391143710,1760393445547,-151.0,0.00029639,30]
[391143712,1760393445556,-815.641376,0.00029645,30]
[391143714,1760393445567,-265.59999999,0.00029645,30]
[391143726,1760393445666,-1030.39263357,0.00029645,30]
[391143734,1760393445729,-315.46697614,0.00029645,30]
[391143741,1760393445790,-3142.38438997,0.00029645,30]
[391144989,1760394395134,-182.0,0.00022,2]
[391144990,1760394395157,-446.61206028,0.00022229,2]
[391144991,1760394395177,-195.0,0.00022457,2]
[391144992,1760394395198,-300.0,0.00022457,2]
[391144993,1760394395221,-300.0,0.00022987,2]
[391144994,1760394395242,-300.0,0.00022987,2]
[391144995,1760394395262,-169.80002192,0.00022987,2]
[391144996,1760394395282,-182.0,0.00023014,7]
[391144997,1760394395301,-433.09376818,0.00023307,2]
[391144998,1760394395321,-433.09376818,0.000237,2]
[391144999,1760394395342,-475.32661018,0.00023728,2]
[391145000,1760394395362,-433.09376818,0.00024094,2]
[391145001,1760394395383,-879.19850665,0.00024148,2]
[391145031,1760394631920,-299.67,0.00013699,2]
[391145032,1760394631930,-250.0,0.00015068,2]
[391145034,1760394631939,-299.67,0.00020187,2]
[391145036,1760394631949,-475.32661018,0.00024145,2]
[391145038,1760394631958,-861.92539161,0.00024148,2]
[391145040,1760394631967,-581.0,0.00024199,2]
[391145042,1760394631977,-300.0,0.00024199,2]
[391145044,1760394631987,-604.0,0.00024199,2]
[391145045,1760394631996,-890.76584215,0.000242,2]
[391145047,1760394632007,-327.77581439,0.000242,2]
[391145050,1760394632018,-286.97171053,0.000242,2]
[391145051,1760394632028,-300.0,0.000242,2]
[391145053,1760394632038,-500.0,0.00024932,2]
[391145054,1760394632047,-299.99,0.0002498,7]
[391145056,1760394632056,-258.42563251,0.00025267,3]
[391145058,1760394632067,-3353.41,0.00025267,2]
[391145060,1760394632076,-926.55720621,0.00025754,50]
[391145062,1760394632085,-387.63844877,0.00026074,4]
[391145064,1760394632095,-420.0,0.00026237,2]
[391145066,1760394632104,-926.55720621,0.00026242,51]
[391145069,1760394632113,-1500.0,0.00026438,120]
[391145070,1760394632123,-242.03,0.00026481,2]
[391145071,1760394632133,-12085.24,0.00026615,2]
[391145072,1760394632143,-299.67,0.00026676,2]
[391145073,1760394632154,-926.55720621,0.00026729,53]
[391145074,1760394632164,-165.95,0.0002673,2]
[391145075,1760394632174,-250.0,0.00026784,7]
[391145077,1760394632184,-253.0,0.00026833,2]
[391145078,1760394632194,-250.0,0.00026864,2]
[391145079,1760394632203,-323.03204064,0.00026882,6]
[391145080,1760394632212,-1768.163,0.00026897,14]
[391145081,1760394632221,-600.0,0.00026908,2]
[391145082,1760394632232,-418.48,0.00026908,2]
[391145083,1760394632241,-170.8508465,0.00026926,7]
[391145084,1760394632250,-37567.08822773,0.0002711,2]
[391145085,1760394632262,-37641.37670127,0.0002711,2]
[391145086,1760394632272,-194.87312434,0.00027112,2]
[391145087,1760394632281,-194.87312434,0.00027119,2]
[391145088,1760394632292,-194.87312434,0.00027141,2]
[391145089,1760394632301,-66484.92536437,0.00027142,2]
[391145090,1760394632312,-556.8968615,0.00027142,2]
[391145191,1760394639079,-2798.75877319,0.00027142,2]
[391145242,1760394639663,-1827.25068164,0.00027142,2]
[391145254,1760394639773,-696.15190104,0.00027142,2]
[391145260,1760394639844,-744.66803838,0.00027142,2]
[391145262,1760394639856,-2099.81330888,0.00027142,2]
[391145264,1760394639865,-75208.464929,0.00027145,2]
[391145266,1760394639874,-926.55720621,0.00027216,54]
[391145268,1760394639883,-5231.81283198,0.00027338,2]
[391145270,1760394639892,-277.35679052,0.00027338,2]
[391145272,1760394639902,-1338.94024625,0.00027524,2]
[391145274,1760394639911,-151.0,0.00027629,2]
[391145276,1760394639921,-151.0,0.00027629,2]
[391145279,1760394639931,-151.0,0.00027629,2]
[391145281,1760394639941,-244.99790245,0.00027629,2]
[391145282,1760394639951,-200.0,0.00027629,2]
[391145284,1760394639960,-670.58624095,0.00027629,2]
[391145287,1760394639970,-322.6107,0.00027629,2]
[391145289,1760394639979,-215.35469377,0.00027689,8]
[391145291,1760394639988,-472.07859674,0.000277,5]
[391145293,1760394639998,-165.64596399,0.000277,5]
[391145295,1760394640008,-926.55720621,0.00027703,55]
[391145297,1760394640018,-500.0,0.00027727,7]
[391145299,1760394640027,-560.03708845,0.00028001,7]
[391145301,1760394640036,-1100.0,0.00028001,7]
[391145303,1760394640045,-691.04867748,0.00028011,2]
[391145306,1760394640054,-926.55720621,0.00028191,56]
[391145309,1760394640063,-236.89016314,0.00028496,10]
[391145311,1760394640071,-500.0,0.00028549,7]
[391145314,1760394640080,-926.55720621,0.00028678,57]
[391145317,1760394640090,-257.91778498,0.00028707,2]
[391145320,1760394640099,-1789.22395561,0.00028754,2]
[391145323,1760394640108,-205.2,0.00028767,120]
[391145326,1760394640117,-500.0,0.0002878,120]
[391145329,1760394640126,-500.0,0.0002878,120]
[391145331,1760394640135,-1000.0,0.000288,2]
[391145334,1760394640145,-150.0,0.00028822,2]
[391145337,1760394640155,-167.81,0.00028822,2]
[391145340,1760394640165,-826.58,0.00028822,2]
[391145344,1760394640175,-150.0,0.00028822,2]
[391145347,1760394640184,-150.0,0.00028822,2]
[391145350,1760394640193,-150.0,0.00028822,2]
[391145353,1760394640203,-1100.0,0.00028823,7]
[391145356,1760394640213,-150.0,0.00028831,2]
[391145359,1760394640223,-500.0,0.00028831,2]
[391145362,1760394640232,-150.0,0.00028886,2]
[391145365,1760394640241,-500.0,0.00028886,2]
[391145367,1760394640251,-660.81,0.00028901,90]
[391145369,1760394640260,-170.8508465,0.00028934,7]
[391145371,1760394640269,-150.0,0.00028941,2]
[391145373,1760394640279,-500.0,0.00028941,2]
[391145375,1760394640288,-150.0,0.00028995,2]
[391145377,1760394640297,-500.0,0.00028995,2]
[391145379,1760394640307,-182.0,0.00028997,14]
[391145381,1760394640316,-150.0,0.0002905,2]
[391145383,1760394640326,-500.0,0.0002905,2]
[391145385,1760394640335,-157.06199873,0.00029105,2]
[391145387,1760394640343,-428.0,0.00029105,2]
[391145388,1760394640352,-500.0,0.00029124,2]
[391145389,1760394640362,-500.0,0.00029124,2]
[391145390,1760394640371,-152.69157207,0.00029124,2]
[391145391,1760394640381,-500.0,0.00029124,2]
[391145392,1760394640390,-500.0,0.00029124,2]
[391145393,1760394640399,-500.0,0.00029124,2]
[391145394,1760394640409,-500.0,0.00029124,2]
[391145395,1760394640422,-500.0,0.00029124,2]
[391145396,1760394640432,-500.0,0.00029124,2]
[391145397,1760394640441,-500.0,0.00029124,2]
[391145398,1760394640450,-500.0,0.00029124,2]
[391145400,1760394640459,-420.54789054,0.00029124,2]
[391145402,1760394640468,-2130.9374,0.00029126,2]
[391145404,1760394640477,-6610.5619,0.00029126,2]
[391145406,1760394640486,-2500.0,0.00029126,2]
[391145408,1760394640495,-1000.0,0.00029129,2]
[391145410,1760394640504,-926.55720621,0.00029165,58]
[391145412,1760394640514,-4328.68100308,0.00029219,2]
[391145414,1760394640524,-565.63680002,0.00029225,10]
[391145416,1760394640533,-452.52329299,0.00029225,2]
[391145418,1760394640542,-94939.73138915,0.00029226,2]
[391145421,1760394640554,-9460.6595066,0.00029226,2]
[391145423,1760394640565,-9619.13435145,0.00029226,2]
[391145425,1760394640575,-533.55399999,0.00029226,2]
[391145570,1760394643613,-4897.51015768,0.00029226,2]
[391145571,1760394643624,-352.858,0.00029226,2]
[391145572,1760394643636,-1173.42251106,0.00029226,2]
[391145573,1760394643647,-14856.42987376,0.00029226,2]
[391145574,1760394643658,-32835.15635735,0.00029226,2]
[391145781,1760394645831,-4217.51334497,0.00029226,2]
[391145785,1760394645851,-1823.94239255,0.00029226,2]
[391145795,1760394645949,-2581.94591284,0.00029226,2]
[391145797,1760394645960,-457.2930788,0.00029226,2]
[391146825,1760395396870,-166.14092781,0.00024932,2]
[391146832,1760395776566,150.0,0.0001338,2]
[391146833,1760395776591,273.91,0.0001338,2]
[391146838,1760395831873,-175.35879412,0.00024832,2]
[391146839,1760395831883,-500.0,0.00024932,2]
[391146840,1760395831892,-475.32661018,0.00024978,2]
[391146841,1760395831902,-535.35,0.00025003,2]
[391146842,1760395831911,-100.22305776,0.00025003,2]
[391146843,1760395831990,-425.63694224,0.00025003,2]
[391146844,1760395832000,-526.29,0.00025072,2]
[391146845,1760395832009,-216.54688409,0.00025202,2]
[391146846,1760395832018,-516.27,0.00025207,2]
[391146847,1760395832027,-216.54688409,0.00025325,2]
[391146848,1760395832039,-213.40975076,0.00025401,2]
[391146849,1760395832049,-1200.0,0.00025447,2]
[391146850,1760395832058,-216.54688409,0.00025448,2]
[391146851,1760395832068,-300.0,0.00025464,2]
[391146852,1760395832078,-300.0,0.00025464,2]
[391146853,1760395832087,-532.33,0.00025466,2]
[391146854,1760395832096,-521.24,0.00025466,2]
[391146855,1760395832105,-521.56,0.00025978,2]
[391146856,1760395832116,-269.50038956,0.00025978,4]
[391146857,1760395832126,-150.0,0.00026679,4]
[391146858,1760395832135,-150.0,0.00026679,4]
[391146859,1760395832144,-166.66,0.00026693,30]
[391146860,1760395832153,-202.12529218,0.00026722,6]
[391146861,1760395832162,-5000.0,0.00026928,2]
[391146862,1760395832171,-517.63,0.00026988,2]
[391146863,1760395832180,-893.28038377,0.00027047,2]
[391146864,1760395832190,-200.0,0.00027059,2]
[391146865,1760395832199,-239.83630853,0.00027063,2]
[391146866,1760395832208,-239.83630853,0.00027077,2]
[391146867,1760395832217,-239.83630853,0.00027091,2]
[391146868,1760395832226,-893.28038377,0.00027094,2]
[391146869,1760395832235,-150.0,0.00027103,2]
[391146870,1760395832245,-200.0,0.00027103,2]
[391146871,1760395832254,-800.0,0.00027148,3]
[391146872,1760395832263,-150.0,0.00027163,2]
[391146873,1760395832272,-893.28038377,0.0002719,2]
[391146874,1760395832282,-166.66,0.00027255,30]
[391146875,1760395832291,-2000.0,0.00027315,120]
[391146876,1760395832300,-250.0,0.00027315,2]
[391146877,1760395832309,-300.0,0.00027315,2]
[391146878,1760395832317,-666.0,0.00027344,3]
[391146879,1760395832326,-250.0,0.00027392,2]
[391146880,1760395832336,-336.87548698,0.00027466,7]
[391146881,1760395832349,-420.0,0.00027573,2]
[391146882,1760395832358,-619.02,0.00027792,30]
[391146883,1760395832368,-151.0,0.00027801,2]
[391146884,1760395832377,-151.0,0.00027801,2]
[391146885,1760395832387,-151.0,0.00027801,2]
[391146886,1760395832396,-151.0,0.00027801,2]
[391146887,1760395832405,-151.0,0.00027801,2]
[391146888,1760395832415,-244.5731242,0.00027801,2]
[391146889,1760395832424,-151.0,0.00027801,2]
[391146890,1760395832434,-152.68975694,0.00027801,2]
[391146892,1760395832444,-151.0,0.00027801,2]
[391146894,1760395832453,-166.66,0.00027817,30]
[391146896,1760395832462,-220.89225444,0.00027818,2]
[391146907,1760395837943,-10957.58774556,0.00027818,2]
[391146908,1760395837952,-500.0,0.000279,2]
[391146909,1760395837962,-257.91778498,0.00027919,2]
[391146910,1760395837972,-9552.16786547,0.00027919,2]
[391146911,1760395837982,-670.58624095,0.00027919,2]
[391146912,1760395837991,-322.6107,0.00027919,2]
[391146913,1760395838001,-151.0,0.00027919,2]
[391146914,1760395838010,-9905.5980765,0.00027974,2]
[391146915,1760395838020,-1414.53,0.00028,18]
[391146916,1760395838029,-500.0,0.00028001,7]
[391146917,1760395838043,-1100.0,0.00028001,7]
[391146918,1760395838054,-151.5,0.00028001,2]
[391146919,1760395838063,-527.89,0.00028001,2]
[391146920,1760395838073,-534.21,0.00028001,2]
[391146921,1760395838083,-527.97,0.00028001,2]
[391146922,1760395838093,-533.4,0.00028001,2]
[391146923,1760395838102,-150.68,0.00028001,2]
[391146924,1760395838113,-151.61,0.00028001,2]
[391146925,1760395838122,-517.32,0.00028001,2]
[391146926,1760395838132,-286.86424722,0.00028027,2]
[391146927,1760395838141,-500.0,0.00028027,2]
[391146928,1760395838150,-500.0,0.00028027,2]
[391146929,1760395838161,-500.0,0.00028027,2]
[391146930,1760395838171,-500.0,0.00028027,2]
[391146931,1760395838180,-500.0,0.00028027,2]
[391146932,1760395838190,-500.0,0.00028027,2]
[391146933,1760395838198,-500.0,0.00028027,2]
[391146935,1760395838208,-262.07407185,0.00028027,2]
[391146936,1760395838218,-10272.10520533,0.00028029,2]
[391146938,1760395838227,-10652.17309792,0.00028084,2]
[391146940,1760395838236,-539.5410649,0.00028139,2]
[391146943,1760395838248,-305.96311241,0.00028139,2]
[391147254,1760395841286,-2346.57002017,0.00028139,2]
[391147256,1760395841295,-202.12529219,0.0002821,9]
[391147258,1760395841304,-845.09189653,0.00028239,2]
[391147259,1760395841313,-185.25,0.00028359,2]
[391147261,1760395841323,-2751.0,0.00028361,2]
[391147263,1760395841332,-166.66,0.00028379,30]
[391147265,1760395841341,-1852.42,0.0002838,2]
[391147267,1760395841350,-1096.29,0.00028386,2]
[391147269,1760395841359,-168.0,0.0002861,2]
[391147271,1760395841371,-1389.36,0.00028685,2]
[391147273,1760395841380,-534.57,0.00028721,2]
[391147275,1760395841389,-2126.0,0.00028721,2]
[391147276,1760395841399,-1613.89161198,0.00028754,2]
[391147278,1760395841408,-845.09189653,0.00028756,2]
[391147280,1760395841417,-413.29,0.00028822,2]
[391147282,1760395841426,-500.0,0.00028823,7]
[391147283,1760395841435,-1100.0,0.00028823,7]
[391147285,1760395841444,-2500.0,0.00028885,7]
[391147287,1760395841453,-2500.0,0.00028894,7]
[391147289,1760395841462,-2500.0,0.00028903,7]
[391147291,1760395841471,-518.23,0.0002891,2]
[391147293,1760395841480,-2500.0,0.00028912,7]
[391147294,1760395841490,-500.0,0.00028912,120]
[391147296,1760395841499,-500.0,0.00028912,120]
[391147298,1760395841508,-500.0,0.00028912,120]
[391147300,1760395841517,-2500.0,0.0002892,7]
[391147302,1760395841526,-2500.0,0.00028929,7]
[391147304,1760395841536,-2500.0,0.00028938,7]
[391147306,1760395841545,-166.66,0.00028941,30]
[391147308,1760395841554,-2500.0,0.00028947,7]
[391147309,1760395841563,-224.58365799,0.00028954,10]
[391147311,1760395841572,-2500.0,0.00028956,7]
[391147313,1760395841582,-845.09189655,0.00028958,2]
[391147315,1760395841591,-2500.0,0.00028964,7]
[391147317,1760395841600,-2500.0,0.00028973,7]
[391147318,1760395841608,-2500.0,0.00028982,7]
[391147320,1760395841619,-2500.0,0.00028991,7]
[391147322,1760395841627,-2500.0,0.00029,7]
[391147324,1760395841638,-500.0,0.00029,120]
[391147326,1760395841647,-500.0,0.00029,2]
[391147327,1760395841655,-500.0,0.00029,2]
[391147329,1760395841664,-1000.0,0.00029,2]
[391147331,1760395841674,-2000.0,0.00029,2]
[391147333,1760395841683,-500.0,0.00029,2]
[391147335,1760395841692,-4475.79966436,0.00029005,2]
[391147337,1760395841701,-2500.0,0.00029008,7]
[391147339,1760395841710,-2500.0,0.00029017,7]
[391147340,1760395841720,-2126.0,0.00029018,2]
[391147342,1760395841729,-2500.0,0.00029026,7]
[391147344,1760395841739,-4475.79966433,0.00029067,2]
[391147346,1760395841748,-806.94364851,0.000291,17]
[391147348,1760395841757,-150.0,0.00029105,2]
[391147350,1760395841766,-150.0,0.00029105,2]
[391147351,1760395841775,-150.0,0.00029105,2]
[391147353,1760395841784,-150.0,0.00029105,2]
[391147355,1760395841793,-150.0,0.00029105,2]
[391147357,1760395841802,-150.0,0.00029105,120]
[391147359,1760395841811,-150.0,0.00029105,120]
[391147361,1760395841819,-150.0,0.00029105,120]
[391147363,1760395841828,-150.0,0.00029105,120]
[391147364,1760395841837,-150.0,0.00029105,120]
[391147366,1760395841846,-150.0,0.00029105,120]
[391147368,1760395841855,-150.0,0.00029105,2]
[391147370,1760395841864,-150.0,0.00029105,2]
[391147372,1760395841873,-150.0,0.00029105,2]
[391147374,1760395841882,-150.0,0.00029105,2]
[391147375,1760395841891,-150.0,0.00029105,2]
[391147377,1760395841900,-150.0,0.00029105,2]
[391147379,1760395841910,-150.0,0.00029105,2]
[391147381,1760395841920,-150.0,0.00029105,2]
[391147383,1760395841929,-150.0,0.00029105,2]
[391147385,1760395841938,-150.0,0.00029105,2]
[391147387,1760395841947,-500.0,0.00029105,2]
[391147389,1760395841956,-150.0,0.00029105,2]
[391147390,1760395841965,-508.0,0.00029105,2]
[391147392,1760395841974,-150.0,0.00029105,2]
[391147394,1760395841983,-150.0,0.00029105,60]
[391147396,1760395841992,-150.0,0.00029105,60]
[391147398,1760395842001,-200.0,0.00029105,60]
[391147400,1760395842010,-150.0,0.00029105,2]
[391147401,1760395842019,-150.0,0.00029105,2]
[391147403,1760395842028,-500.0,0.00029105,2]
[391147405,1760395842037,-524.51,0.00029124,2]
[391147407,1760395842051,-1000.0,0.00029126,2]
[391147409,1760395842060,-4475.79966433,0.0002913,2]
[391147410,1760395842069,-2707.26611141,0.00029148,3]
[391147411,1760395842078,-150.0,0.0002916,2]
[391147412,1760395842089,-150.0,0.0002916,2]
[391147413,1760395842098,-150.0,0.0002916,2]
[391147414,1760395842107,-519.06945103,0.0002916,2]
[391147415,1760395842116,-508.0,0.0002916,2]
[391147416,1760395842126,-150.0,0.0002916,2]
[391147417,1760395842137,-150.0,0.0002916,2]
[391147418,1760395842147,-500.0,0.0002916,2]
[391147419,1760395842156,-4475.79966433,0.00029192,2]
[391147420,1760395842165,-938.1596003,0.00029208,2]
[391147421,1760395842174,-33443.9811561,0.00029208,2]
[391147422,1760395842183,-200.0,0.00029215,2]
[391147424,1760395842193,-200.0,0.00029215,2]
[391147426,1760395842202,-200.0,0.00029215,2]
[391147428,1760395842211,-508.0,0.00029215,2]
[391147430,1760395842220,-200.0,0.00029215,2]
[391147433,1760395842230,-200.0,0.00029215,2]
[391147434,1760395842240,-500.0,0.00029215,2]
[391147477,1760395842250,-600.16484925,0.00029226,120]
[391147482,1760395842657,-200.0,0.00029226,2]
[391147484,1760395842666,-200.0,0.00029226,2]
[391147487,1760395842676,-664.10267,0.00029226,2]
[391147490,1760395842686,-517.86,0.00029226,2]
[391147493,1760395842695,-4475.79966433,0.00029255,2]
[391147496,1760395842703,-151.0,0.00029264,7]
[391147499,1760395842712,-39524.0,0.00029267,2]
[391147502,1760395842723,-508.0,0.00029269,2]
[391147505,1760395842732,-500.0,0.00029269,2]
[391147508,1760395842740,-200.0,0.00029273,2]
[391147511,1760395842750,-2126.0,0.00029314,2]
[391147514,1760395842759,-156.0,0.00029315,5]
[391147517,1760395842769,-4475.79966433,0.00029317,2]
[391147520,1760395842778,-508.0,0.00029324,2]
[391147523,1760395842787,-500.0,0.00029324,2]
[391147525,1760395842796,-279.55,0.00029329,2]
[391147528,1760395842805,-657.73518215,0.00029342,2]
[391147531,1760395842814,-300.0,0.00029347,41]
[391147534,1760395842824,-255.74150669,0.0002935,2]
[391147537,1760395842834,-1000.0,0.00029358,2]
[391147540,1760395842843,-2500.0,0.00029359,2]
[391147543,1760395842852,-180.64732777,0.00029366,2]
[391147546,1760395842861,-1000.0,0.00029371,2]
[391147549,1760395842870,-1000.0,0.00029373,2]
[391147552,1760395842880,-657.73518213,0.00029374,2]
[391147555,1760395842889,-1000.0,0.00029377,2]
[391147558,1760395842899,-508.0,0.00029379,2]
[391147561,1760395842908,-500.0,0.00029379,2]
[391147564,1760395842918,-4475.79966433,0.0002938,2]
[391147567,1760395842927,-1425.0,0.00029385,2]
[391147570,1760395842937,-1000.0,0.00029402,2]
[391147573,1760395842946,-200.0,0.00029406,2]
[391147576,1760395842956,-1425.0,0.00029423,2]
[391147579,1760395842965,-508.0,0.00029434,2]
[391147582,1760395842974,-500.0,0.00029434,2]
[391147585,1760395842983,-363.30527104,0.00029435,2]
[391147588,1760395842993,-150.96178855,0.0002944,2]
[391147591,1760395843004,-4475.79966433,0.00029442,2]
[391147594,1760395843013,-4520.82591755,0.00029443,2]
[391147598,1760395843023,-156.03543264,0.00029445,15]
[391147602,1760395843032,-4520.82591751,0.00029457,2]
[391147605,1760395843045,-1000.0,0.00029459,2]
[391147608,1760395843054,-1000.0,0.00029461,2]
[391147611,1760395843064,-524.49,0.0002947,2]
[391147614,1760395843074,-4520.82591751,0.00029471,2]
[391147615,1760395843086,-156.03543263,0.00029476,15]
[391147618,1760395843095,-4520.82591751,0.00029484,2]
[391147621,1760395843104,-508.0,0.00029489,2]
[391147626,1760395843115,-500.0,0.00029489,2]
[391147629,1760395843125,-150.0,0.00029496,2]